fUSD/lending_fUSD_20250223
["ID","MTS","AMOUNT","RATE_DAILY","PERIOD"]
[354199495,1740343895820,-1211.94,0.00016767,2]
[354199496,1740343895829,-500.0,0.00016767,2]
[354199497,1740343895839,-502.22,0.00016767,2]
[354199498,1740343895848,-481.61748952,0.00016767,2]
[354199499,1740343895857,-500.0,0.00016767,2]
[354199500,1740343895867,-500.0,0.00016767,2]
[354199501,1740343895876,-500.0,0.00016767,2]
[354199502,1740343895885,-500.0,0.00016767,2]
[354199503,1740343895894,-2240.0,0.00016767,2]
[354199504,1740343895903,-1289.35,0.00016767,2]
[354199505,1740343895912,-595.82,0.00016767,2]
[354199506,1740343895921,-500.0,0.00016767,2]
[354199507,1740343895931,-2354.58,0.00016767,2]
[354199508,1740343895939,-587.87,0.00016767,2]
[354199509,1740343895949,-671.68,0.00016767,2]
[354199510,1740343895958,-500.0,0.00016767,2]
[354199511,1740343895967,-500.0,0.00016767,2]
[354199512,1740343895977,-528.79,0.00016767,2]
[354199513,1740343895986,-500.0,0.00016767,2]
[354199514,1740343895995,-1933.53,0.00016767,2]
[354199515,1740343896004,-500.0,0.00016767,2]
[354199516,1740343896014,-680.55,0.00016767,2]
[354199517,1740343896023,-500.0,0.00016767,2]
[354199518,1740343896033,-500.0,0.00016767,2]
[354199519,1740343896042,-789.93,0.00016767,2]
[354199520,1740343896052,-541.66,0.00016767,2]
[354199521,1740343896061,-911.2,0.00016767,2]
[354199522,1740343896071,-1289.37,0.00016767,2]
[354199523,1740343896080,-500.0,0.00016767,2]
[354199524,1740343896089,-500.0,0.00016767,2]
[354199525,1740343896099,-1157.75,0.00016767,2]
[354199526,1740343896109,-1674.27,0.00016767,2]
[354199527,1740343896118,-500.0,0.00016767,2]
[354199528,1740343896127,-2363.54,0.00016767,2]
[354199529,1740343896138,-234.50133283,0.00016767,2]
[354199530,1740343896147,-500.0,0.00016767,2]
[354199531,1740343896157,-3118.86,0.00016767,2]
[354199532,1740343896166,-1270.5,0.00016767,2]
[354199533,1740343896175,-605.3,0.00016767,2]
[354199534,1740343896184,-500.0,0.00016767,2]
[354199535,1740343896193,-1142.74,0.00016767,2]
[354199536,1740343896203,-641.89,0.00016767,2]
[354199537,1740343896212,-1482.64,0.00016767,2]
[354199538,1740343896221,-1665.42,0.00016767,2]
[354199539,1740343896230,-500.0,0.00016767,2]
[354199540,1740343896239,-542.05471195,0.00016767,2]
[354199541,1740343896249,-500.0,0.00016767,2]
[354199542,1740343896258,-932.33,0.00016767,2]
[354199543,1740343896267,-500.0,0.00016767,2]
[354199544,1740343896276,-500.0,0.00016767,2]
[354199545,1740343896285,-500.0,0.00016767,2]
[354199546,1740343896295,-1118.7,0.00016767,2]
[354199547,1740343896304,-1184.9,0.00016767,2]
[354199548,1740343896314,-938.21,0.00016767,2]
[354199549,1740343896323,-739.27,0.00016767,2]
[354199550,1740343896333,-500.0,0.00016767,2]
[354199551,1740343896342,-1325.63,0.00016767,2]
[354199552,1740343896351,-533.75,0.00016767,2]
[354199553,1740343896360,-500.0,0.00016767,2]
[354199554,1740343896369,-500.0,0.00016767,2]
[354199555,1740343896378,-500.0,0.00016767,2]
[354199556,1740343896388,-6435.58,0.00016767,2]
[354199557,1740343896397,-2355.22,0.00016767,2]
[354199558,1740343896407,-3292.72,0.00016767,2]
[354199559,1740343896416,-500.0,0.00016767,2]
[354199560,1740343896425,-1872.2,0.00016767,2]
[354199561,1740343896435,-500.0,0.00016767,2]
[354199562,1740343896443,-1099.7,0.00016767,2]
[354199563,1740343896452,-1911.65,0.00016767,2]
[354199564,1740343896461,-1326.0,0.00016767,2]
[354199565,1740343896470,-500.0,0.00016767,2]
[354199566,1740343896479,-4055.63,0.00016767,2]
[354199567,1740343896488,-500.0,0.00016767,2]
[354199568,1740343896497,-500.0,0.00016767,2]
[354199569,1740343896506,-1863.83,0.00016767,2]
[354199570,1740343896515,-512.6,0.00016767,2]
[354199571,1740343896525,-500.0,0.00016767,2]
[354199572,1740343896534,-831.73,0.00016767,2]
[354199573,1740343896544,-8205.95,0.00016767,2]
[354199574,1740343896553,-1166.72,0.00016767,2]
[354199575,1740343896563,-501.82,0.00016767,2]
[354199576,1740343896572,-554.91,0.00016767,2]
[354199577,1740343896581,-5453.76,0.00016767,2]
[354199578,1740343896590,-500.0,0.00016767,2]
[354199579,1740343896600,-500.0,0.00016767,2]
[354199580,1740343896609,-500.0,0.00016767,2]
[354199581,1740343896618,-962.95,0.00016767,2]
[354199582,1740343896627,-512.65874456,0.00016767,2]
[354199583,1740343896636,-1165.83,0.00016767,2]
[354199584,1740343896645,-500.0,0.00016767,2]
[354199585,1740343896654,-1360.14,0.00016767,2]
[354199586,1740343896664,-807.29,0.00016767,2]
[354199587,1740343896674,-500.0,0.00016767,2]
[354199588,1740343896684,-5612.06,0.00016767,2]
[354199589,1740343896693,-2356.15,0.00016767,2]
[354199590,1740343896702,-639.93,0.00016767,2]
[354199591,1740343896711,-500.0,0.00016767,2]
[354199592,1740343896720,-500.0,0.00016767,2]
[354199593,1740343896729,-2383.86,0.00016767,2]
[354199594,1740343896738,-828.44,0.00016767,2]
[354199595,1740343896747,-500.0,0.00016767,2]
[354199596,1740343896756,-3312.35,0.00016767,2]
[354199597,1740343896765,-1518.24,0.00016767,2]
[354199598,1740343896774,-3431.36,0.00016767,2]
[354199599,1740343896783,-704.97,0.00016767,2]
[354199600,1740343896793,-4174.92,0.00016767,2]
[354199601,1740343896802,-500.0,0.00016767,2]
[354199602,1740343896812,-4462.4,0.00016767,2]
[354199603,1740343896821,-500.0,0.00016767,2]
[354199604,1740343896830,-500.0,0.00016767,2]
[354199605,1740343896840,-2095.47,0.00016767,2]
[354199606,1740343896850,-500.0,0.00016767,2]
[354199607,1740343896860,-1956.6,0.00016767,2]
[354199608,1740343896869,-500.0,0.00016767,2]
[354199609,1740343896879,-2496.88,0.00016767,2]
[354199610,1740343896888,-688.28,0.00016767,2]
[354199611,1740343896897,-500.0,0.00016767,2]
[354199612,1740343896906,-1236.31,0.00016767,2]
[354199613,1740343896915,-500.0,0.00016767,2]
[354199614,1740343896924,-767.16,0.00016767,2]
[354199615,1740343896936,-500.0,0.00016767,2]
[354199616,1740343896945,-3526.96,0.00016767,2]
[354199617,1740343896954,-500.0,0.00016767,2]
[354199618,1740343896963,-2176.55,0.00016767,2]
[354199619,1740343896972,-500.0,0.00016767,2]
[354199620,1740343896981,-1987.13,0.00016767,2]
[354199621,1740343896990,-1294.97,0.00016767,2]
[354199622,1740343896999,-3685.51,0.00016767,2]
[354199623,1740343897008,-928.3,0.00016767,2]
[354199624,1740343897018,-2133.47,0.00016767,2]
[354199625,1740343897027,-546.16,0.00016767,2]
[354199626,1740343897036,-692.28,0.00016767,2]
[354199627,1740343897045,-1884.9,0.00016767,2]
[354199628,1740343897054,-796.12,0.00016767,2]
[354199629,1740343897063,-500.0,0.00016767,2]
[354199630,1740343897073,-10223.21,0.00016767,2]
[354199631,1740343897082,-833.65,0.00016767,2]
[354199632,1740343897091,-533.79,0.00016767,2]
[354199633,1740343897100,-2927.8,0.00016767,2]
[354199634,1740343897109,-2175.67,0.00016767,2]
[354199635,1740343897118,-664.33,0.00016767,2]
[354199636,1740343897128,-500.0,0.00016767,2]
[354199637,1740343897137,-1311.49,0.00016767,2]
[354199638,1740343897147,-3006.46,0.00016767,2]
[354199639,1740343897155,-500.0,0.00016767,2]
[354199640,1740343897165,-1090.43,0.00016767,2]
[354199641,1740343897175,-4628.62,0.00016767,2]
[354199642,1740343897184,-4063.68,0.00016767,2]
[354199643,1740343897193,-500.0,0.00016767,2]
[354199644,1740343897202,-500.0,0.00016767,2]
[354199645,1740343897212,-500.0,0.00016767,2]
[354199646,1740343897221,-500.0,0.00016767,2]
[354199647,1740343897231,-500.0,0.00016767,2]
[354199648,1740343897240,-567.28,0.00016767,2]
[354199649,1740343897250,-1033.79,0.00016767,2]
[354199650,1740343897259,-610.53,0.00016767,2]
[354199651,1740343897268,-3194.1,0.00016767,2]
[354199652,1740343897277,-500.0,0.00016767,2]
[354199653,1740343897287,-679.32,0.00016767,2]
[354199654,1740343897296,-633.93,0.00016767,2]
[354199655,1740343897304,-4036.91,0.00016767,2]
[354199656,1740343897314,-505.51800244,0.00016767,2]
[354199657,1740343897323,-514.58023273,0.00016767,2]
[354199658,1740343897332,-716.28,0.00016767,2]
[354199659,1740343897342,-500.0,0.00016767,2]
[354199660,1740343897351,-518.66254412,0.00016767,2]
[354199661,1740343897360,-1003.57,0.00016767,2]
[354199662,1740343897370,-500.0,0.00016767,2]
[354199663,1740343897379,-2096.1,0.00016767,2]
[354199664,1740343897389,-1892.37,0.00016767,2]
[354199665,1740343897398,-500.0,0.00016767,2]
[354199666,1740343897407,-633.46,0.00016767,2]
[354199667,1740343897416,-500.0,0.00016767,2]
[354199668,1740343897426,-500.0,0.00016767,2]
[354199669,1740343897435,-846.29,0.00016767,2]
[354199670,1740343897445,-1052.98,0.00016767,2]
[354199671,1740343897457,-3839.53,0.00016767,2]
[354199672,1740343897466,-500.0,0.00016767,2]
[354199673,1740343897475,-2971.58,0.00016767,2]
[354199674,1740343897484,-339.58875464,0.00016767,2]
[354199675,1740343897493,-815.13,0.00016767,2]
[354199676,1740343897503,-903.66,0.00016767,2]
[354199677,1740343897512,-2534.55,0.00016767,2]
[354199678,1740343897521,-500.0,0.00016767,2]
[354199679,1740343897530,-1645.46,0.00016767,2]
[354199680,1740343897539,-602.83,0.00016767,2]
[354199681,1740343897548,-674.44,0.00016767,2]
[354199682,1740343897557,-500.0,0.00016767,2]
[354199683,1740343897567,-1329.3,0.00016767,2]
[354199684,1740343897576,-500.0,0.00016767,2]
[354199685,1740343897585,-500.0,0.00016767,2]
[354199686,1740343897594,-6119.6,0.00016767,2]
[354199687,1740343897602,-500.0,0.00016767,2]
[354199688,1740343897611,-2370.29,0.00016767,2]
[354199689,1740343897620,-500.0,0.00016767,2]
[354199690,1740343897629,-1916.81,0.00016767,2]
[354199691,1740343897638,-1579.67,0.00016767,2]
[354199692,1740343897646,-796.7,0.00016767,2]
[354199693,1740343897655,-500.0,0.00016767,2]
[354199694,1740343897664,-6429.49,0.00016767,2]
[354199695,1740343897673,-500.0,0.00016767,2]
[354199696,1740343897682,-812.2,0.00016767,2]
[354199697,1740343897691,-500.0,0.00016767,2]
[354199698,1740343897699,-500.0,0.00016767,2]
[354199699,1740343897708,-500.0,0.00016767,2]
[354199700,1740343897718,-3076.21,0.00016767,2]
[354199701,1740343897727,-1676.25,0.00016767,2]
[354199702,1740343897736,-500.0,0.00016767,2]
[354199703,1740343897745,-1735.56,0.00016767,2]
[354199704,1740343897754,-571.69,0.00016767,2]
[354199705,1740343897763,-982.54,0.00016767,2]
[354199706,1740343897771,-748.67,0.00016767,2]
[354199707,1740343897780,-500.0,0.00016767,2]
[354199708,1740343897790,-681.17,0.00016767,2]
[354199709,1740343897799,-500.0,0.00016767,2]
[354199710,1740343897808,-500.0,0.00016767,2]
[354199711,1740343897817,-2792.25,0.00016767,2]
[354199712,1740343897827,-896.29,0.00016767,2]
[354199713,1740343897836,-378.78897996,0.00016767,2]
[354199714,1740343897845,-500.0,0.00016767,2]
[354199715,1740343897854,-1336.38,0.00016767,2]
[354199716,1740343897863,-500.0,0.00016767,2]
[354199717,1740343897871,-888.04,0.00016767,2]
[354199718,1740343897880,-500.0,0.00016767,2]
[354199719,1740343897889,-500.0,0.00016767,2]
[354199720,1740343897898,-500.0,0.00016767,2]
[354199721,1740343897907,-500.0,0.00016767,2]
[354199722,1740343897916,-543.39,0.00016767,2]
[354199723,1740343897925,-815.04,0.00016767,2]
[354199724,1740343897934,-500.0,0.00016767,2]
[354199725,1740343897943,-1815.08,0.00016767,2]
[354199726,1740343897952,-500.0,0.00016767,2]
[354199727,1740343897961,-500.0,0.00016767,2]
[354199728,1740343897971,-500.0,0.00016767,2]
[354199729,1740343897980,-3012.56,0.00016767,2]
[354199730,1740343897988,-500.0,0.00016767,2]
[354199731,1740343897998,-558.56,0.00016767,2]
[354199732,1740343898006,-3897.38,0.00016767,2]
[354199733,1740343898015,-500.0,0.00016767,2]
[354199734,1740343898024,-500.0,0.00016767,2]
[354199735,1740343898033,-2172.19,0.00016767,2]
[354199736,1740343898042,-500.0,0.00016767,2]
[354199737,1740343898051,-3052.7,0.00016767,2]
[354199738,1740343898060,-500.0,0.00016767,2]
[354199739,1740343898070,-935.49,0.00016767,2]
[354199740,1740343898079,-500.0,0.00016767,2]
[354199741,1740343898089,-734.3,0.00016767,2]
[354199742,1740343898098,-2028.71,0.00016767,2]
[354199743,1740343898107,-864.17,0.00016767,2]
[354199744,1740343898116,-856.6,0.00016767,2]
[354199745,1740343898125,-500.0,0.00016767,2]
[354199746,1740343898135,-605.91,0.00016767,2]
[354199747,1740343898144,-2137.32,0.00016767,2]
[354199748,1740343898154,-500.0,0.00016767,2]
[354199749,1740343898163,-2859.64,0.00016767,2]
[354199750,1740343898172,-578.09242543,0.00016767,2]
[354199751,1740343898181,-500.0,0.00016767,2]
[354199752,1740343898190,-500.0,0.00016767,2]
[354199753,1740343898199,-1409.04,0.00016767,2]
[354199754,1740343898208,-529.62361579,0.00016767,2]
[354199755,1740343898218,-3404.8,0.00016767,2]
[354199756,1740343898227,-500.0,0.00016767,2]
[354199757,1740343898236,-4670.75,0.00016767,2]
[354199758,1740343898245,-2926.8,0.00016767,2]
[354199759,1740343898255,-922.69,0.00016767,2]
[354199760,1740343898264,-500.0,0.00016767,2]
[354199761,1740343898274,-751.58,0.00016767,2]
[354199762,1740343898283,-500.0,0.00016767,2]
[354199763,1740343898292,-743.3,0.00016767,2]
[354199764,1740343898301,-661.6,0.00016767,2]
[354199765,1740343898310,-1688.54,0.00016767,2]
[354199766,1740343898319,-1230.94,0.00016767,2]
[354199767,1740343898328,-783.63,0.00016767,2]
[354199768,1740343898337,-500.0,0.00016767,2]
[354199769,1740343898346,-548.79,0.00016767,2]
[354199770,1740343898355,-500.0,0.00016767,2]
[354199771,1740343898364,-5670.21,0.00016767,2]
[354199772,1740343898372,-500.0,0.00016767,2]
[354199773,1740343898381,-731.88,0.00016767,2]
[354199774,1740343898390,-2899.65,0.00016767,2]
[354199775,1740343898400,-1600.4,0.00016767,2]
[354199776,1740343898409,-1795.41,0.00016767,2]
[354199777,1740343898418,-1485.26,0.00016767,2]
[354199778,1740343898427,-500.0,0.00016767,2]
[354199779,1740343898437,-807.29,0.00016767,2]
[354199780,1740343898446,-2190.09,0.00016767,2]
[354199781,1740343898459,-3809.05,0.00016767,2]
[354199782,1740343898468,-1176.52,0.00016767,2]
[354199783,1740343898477,-731.86,0.00016767,2]
[354199784,1740343898486,-580.36533417,0.00016767,2]
[354199785,1740343898495,-500.0,0.00016767,2]
[354199786,1740343898504,-500.0,0.00016767,2]
[354199787,1740343898514,-500.0,0.00016767,2]
[354199788,1740343898524,-4035.89,0.00016767,2]
[354199789,1740343898533,-2382.31,0.00016767,2]
[354199790,1740343898543,-1024.5,0.00016767,2]
[354199791,1740343898552,-1220.69,0.00016767,2]
[354199792,1740343898561,-2856.99,0.00016767,2]
[354199793,1740343898570,-635.07,0.00016767,2]
[354199794,1740343898579,-2723.43,0.00016767,2]
[354199795,1740343898588,-500.0,0.00016767,2]
[354199796,1740343898597,-1962.73,0.00016767,2]
[354199797,1740343898606,-500.0,0.00016767,2]
[354199798,1740343898616,-516.40820481,0.00016767,2]
[354199799,1740343898625,-1100.74,0.00016767,2]
[354199800,1740343898634,-500.0,0.00016767,2]
[354199801,1740343898644,-743.86,0.00016767,2]
[354199802,1740343898653,-809.89,0.00016767,2]
[354199803,1740343898662,-500.0,0.00016767,2]
[354199804,1740343898671,-1343.68,0.00016767,2]
[354199805,1740343898680,-500.0,0.00016767,2]
[354199806,1740343898689,-500.0,0.00016767,2]
[354199807,1740343898698,-500.0,0.00016767,2]
[354199808,1740343898707,-500.0,0.00016767,2]
[354199809,1740343898716,-500.0,0.00016767,2]
[354199810,1740343898725,-7416.77,0.00016767,2]
[354199811,1740343898735,-1909.96,0.00016767,2]
[354199812,1740343898744,-2254.27,0.00016767,2]
[354199813,1740343898752,-523.21,0.00016767,2]
[354199814,1740343898761,-1832.25,0.00016767,2]
[354199815,1740343898770,-626.43,0.00016767,2]
[354199816,1740343898779,-504.24005667,0.00016767,2]
[354199817,1740343898789,-509.91,0.00016767,2]
[354199818,1740343898798,-500.0,0.00016767,2]
[354199819,1740343898807,-500.0,0.00016767,2]
[354199820,1740343898814,-1275.74,0.00016767,2]
[354199821,1740343898823,-4872.04,0.00016767,2]
[354199822,1740343898833,-2349.07,0.00016767,2]
[354199823,1740343898842,-629.59,0.00016767,2]
[354199824,1740343898851,-2438.41,0.00016767,2]
[354199825,1740343898860,-1950.49,0.00016767,2]
[354199826,1740343898870,-500.0,0.00016767,2]
[354199827,1740343898879,-500.0,0.00016767,2]
[354199828,1740343898888,-500.0,0.00016767,2]
[354199829,1740343898897,-500.0,0.00016767,2]
[354199830,1740343898906,-810.61,0.00016767,2]
[354199831,1740343898915,-2348.82,0.00016767,2]
[354199832,1740343898924,-2140.27,0.00016767,2]
[354199833,1740343898933,-2527.47,0.00016767,2]
[354199834,1740343898943,-500.0,0.00016767,2]
[354199835,1740343898952,-2447.78,0.00016767,2]
[354199836,1740343898961,-2182.02,0.00016767,2]
[354199837,1740343898971,-500.0,0.00016767,2]
[354199838,1740343898981,-2249.19,0.00016767,2]
[354199839,1740343898990,-2019.57,0.00016767,2]
[354199840,1740343899000,-500.0,0.00016767,2]
[354199841,1740343899008,-500.0,0.00016767,2]
[354199842,1740343899017,-500.0,0.00016767,2]
[354199843,1740343899027,-1929.24,0.00016767,2]
[354199844,1740343899036,-1575.01,0.00016767,2]
[354199845,1740343899045,-809.02,0.00016767,2]
[354199846,1740343899054,-698.86,0.00016767,2]
[354199847,1740343899063,-2627.13,0.00016767,2]
[354199848,1740343899073,-500.0,0.00016767,2]
[354199849,1740343899082,-816.5,0.00016767,2]
[354199850,1740343899091,-500.0,0.00016767,2]
[354199851,1740343899100,-2918.5,0.00016767,2]
[354199852,1740343899109,-2072.84,0.00016767,2]
[354199853,1740343899118,-479.04134835,0.00016767,2]
[354199854,1740343899128,-500.0,0.00016767,2]
[354199855,1740343899138,-1207.48,0.00016767,2]
[354199856,1740343899147,-1375.81,0.00016767,2]
[354199857,1740343899157,-500.0,0.00016767,2]
[354199858,1740343899166,-2319.2,0.00016767,2]
[354199859,1740343899175,-150.0,0.00016773,2]
[354199860,1740343899184,-583.56,0.00016793,2]
[354199861,1740343899194,-559.0,0.00016794,2]
[354199862,1740343899204,-5000.0,0.000168,3]
[354199863,1740343899213,-150.0,0.00016804,2]
[354199864,1740343899222,-1177.32,0.00016815,7]
[354199865,1740343899231,-1177.32,0.00016815,7]
[354199866,1740343899241,-559.0,0.00016821,2]
[354199867,1740343899250,-559.0,0.00016849,2]
[354199868,1740343899259,-567.68,0.00016849,2]
[354199869,1740343899268,-447.14,0.00016849,2]
[354199870,1740343899277,-447.14,0.00016849,2]
[354199871,1740343899286,-500.0,0.00016849,2]
[354199872,1740343899295,-500.0,0.00016849,2]
[354199873,1740343899304,-498.42913354,0.00016849,2]
[354199874,1740343899313,-500.0,0.00016849,2]
[354199875,1740343899322,-500.0,0.00016849,2]
[354199876,1740343899331,-693.84,0.00016849,2]
[354199877,1740343899340,-500.0,0.00016849,2]
[354199878,1740343899348,-516.16,0.00016849,2]
[354199879,1740343899357,-514.7777269,0.00016849,2]
[354199880,1740343899366,-500.0,0.00016849,2]
[354199881,1740343899375,-500.0,0.00016849,2]
[354199882,1740343899385,-500.0,0.00016849,2]
[354199883,1740343899395,-543.48,0.00016849,2]
[354199884,1740343899404,-500.0,0.00016849,2]
[354199885,1740343899413,-500.0,0.00016849,2]
[354199886,1740343899422,-500.0,0.00016849,2]
[354199887,1740343899431,-541.66,0.00016849,2]
[354199888,1740343899440,-688.62,0.00016849,2]
[354199889,1740343899450,-500.0,0.00016849,2]
[354199890,1740343899460,-500.0,0.00016849,2]
[354199891,1740343899469,-500.0,0.00016849,2]
[354199892,1740343899478,-500.0,0.00016849,2]
[354199893,1740343899487,-500.0,0.00016849,2]
[354199894,1740343899496,-500.0,0.00016849,2]
[354199895,1740343899505,-500.0,0.00016849,2]
[354199896,1740343899514,-500.0,0.00016849,2]
[354199897,1740343899523,-638.28,0.00016849,2]
[354199898,1740343899533,-792.86,0.00016849,2]
[354199899,1740343899746,-500.0,0.00016849,2]
[354199900,1740343899756,-500.0,0.00016849,2]
[354199901,1740343899765,-500.0,0.00016849,2]
[354199902,1740343899774,-686.97,0.00016849,2]
[354199903,1740343899783,-500.0,0.00016849,2]
[354199904,1740343899792,-703.02,0.00016849,2]
[354199905,1740343899801,-1248.47,0.00016849,2]
[354199906,1740343899810,-889.63,0.00016849,2]
[354199907,1740343899820,-573.48,0.00016849,2]
[354199908,1740343899829,-706.59,0.00016849,2]
[354199909,1740343899838,-717.05,0.00016849,2]
[354199910,1740343899847,-500.0,0.00016849,2]
[354199911,1740343899857,-500.0,0.00016849,2]
[354199912,1740343899866,-500.0,0.00016849,2]
[354199913,1740343899874,-1040.39,0.00016849,2]
[354199914,1740343899884,-1199.15,0.00016849,2]
[354199915,1740343899893,-500.0,0.00016849,2]
[354199916,1740343899902,-781.31,0.00016849,2]
[354199917,1740343899911,-500.0,0.00016849,2]
[354199918,1740343899920,-500.0,0.00016849,2]
[354199919,1740343899930,-500.0,0.00016849,2]
[354199920,1740343899939,-500.0,0.00016849,2]
[354199921,1740343899949,-500.0,0.00016849,2]
[354199922,1740343899958,-500.0,0.00016849,2]
[354199923,1740343899967,-734.72,0.00016849,2]
[354199924,1740343899976,-500.0,0.00016849,2]
[354199925,1740343899986,-273.63387189,0.00016849,2]
[354199926,1740343899995,-500.0,0.00016849,2]
[354199927,1740343900004,-500.0,0.00016849,2]
[354199928,1740343900013,-625.0,0.00016849,2]
[354199929,1740343900022,-209.65876417,0.00016849,2]
[354199930,1740343900031,-723.95,0.00016849,2]
[354199931,1740343900040,-500.0,0.00016849,2]
[354199932,1740343900049,-687.87,0.00016849,2]
[354199933,1740343900058,-776.6,0.00016849,2]
[354199934,1740343900067,-662.52,0.00016849,2]
[354199935,1740343900076,-500.0,0.00016849,2]
[354199936,1740343900085,-500.0,0.00016849,2]
[354199937,1740343900095,-796.55,0.00016849,2]
[354199938,1740343900104,-814.83,0.00016849,2]
[354199939,1740343900113,-689.81,0.00016849,2]
[354199940,1740343900123,-585.64300686,0.00016849,2]
[354199941,1740343900132,-500.0,0.00016849,2]
[354199942,1740343900142,-500.0,0.00016849,2]
[354199943,1740343900151,-500.0,0.00016849,2]
[354199944,1740343900160,-500.0,0.00016849,2]
[354199945,1740343900169,-195.84599949,0.00016849,2]
[354199946,1740343900178,-781.83,0.00016849,2]
[354199947,1740343900187,-500.0,0.00016849,2]
[354199948,1740343900197,-769.09,0.00016849,2]
[354199949,1740343900206,-502.43570882,0.00016849,2]
[354199950,1740343900216,-942.23,0.00016849,2]
[354199951,1740343900225,-1130.85,0.00016849,2]
[354199952,1740343900234,-500.0,0.00016849,2]
[354199953,1740343900243,-643.40024206,0.00016849,2]
[354199954,1740343900252,-500.0,0.00016849,2]
[354199955,1740343900261,-560.49876088,0.00016849,2]
[354199956,1740343900270,-500.0,0.00016849,2]
[354199957,1740343900279,-637.99,0.00016849,2]
[354199958,1740343900288,-664.99,0.00016849,2]
[354199959,1740343900297,-500.0,0.00016849,2]
[354199960,1740343900307,-770.57,0.00016849,2]
[354199961,1740343900316,-232.77463831,0.00016849,2]
[354199962,1740343900325,-500.0,0.00016849,2]
[354199963,1740343900334,-500.0,0.00016849,2]
[354199964,1740343900344,-1034.34,0.00016849,2]
[354199965,1740343900353,-500.0,0.00016849,2]
[354199966,1740343900363,-500.0,0.00016849,2]
[354199967,1740343900372,-500.0,0.00016849,2]
[354199968,1740343900382,-500.0,0.00016849,2]
[354199969,1740343900391,-600.87,0.00016849,2]
[354199970,1740343900401,-500.0,0.00016849,2]
[354199971,1740343900410,-746.03,0.00016849,2]
[354199972,1740343900420,-500.0,0.00016849,2]
[354199973,1740343900429,-710.25,0.00016849,2]
[354199974,1740343900439,-500.0,0.00016849,2]
[354199975,1740343900448,-734.17,0.00016849,2]
[354199976,1740343900458,-522.53580009,0.00016849,2]
[354199977,1740343900467,-500.0,0.00016849,2]
[354199978,1740343900477,-703.72,0.00016849,2]
[354199979,1740343900486,-865.64,0.00016849,2]
[354199980,1740343900495,-500.0,0.00016849,2]
[354199981,1740343900505,-732.05,0.00016849,2]
[354199982,1740343900514,-500.0,0.00016849,2]
[354199983,1740343900523,-2331.89,0.00016849,2]
[354199984,1740343900533,-1175.06,0.00016849,2]
[354199985,1740343900542,-752.25,0.00016849,2]
[354199986,1740343900552,-500.0,0.00016849,2]
[354199987,1740343900561,-500.0,0.00016849,2]
[354199988,1740343900571,-500.0,0.00016849,2]
[354199989,1740343900580,-500.0,0.00016849,2]
[354199990,1740343900589,-500.0,0.00016849,2]
[354199991,1740343900599,-500.0,0.00016849,2]
[354199992,1740343900608,-291.48632344,0.00016849,2]
[354199993,1740343900617,-500.0,0.00016849,2]
[354199994,1740343900627,-500.0,0.00016849,2]